[Event "*** Titled Tuesday 3|2 Blitz"]
[Site "Chess.com"]
[Date "2015.12.01"]
[Round "6"]
[White "JustKid"]
[Black "bugsbunny444"]
[Result "0-1"]
[WhiteElo "2102"]
[BlackElo "2348"]
[TimeControl "180+2"]
[EndTime "18:16:17 PST"]
[Termination "bugsbunny444 won by resignation"]

1. d4 {[%clk 0:03:01.9]} 1... e6 {[%clk 0:03:01.2]} 2. c4 {[%clk 0:03:02.5]}
2... b6 {[%clk 0:03:02.8]} 3. Nf3 {[%clk 0:03:02.5]} 3... Bb7 {[%clk 0:03:04.1]}
4. g3 {[%clk 0:03:02.9]} 4... Bb4+ {[%clk 0:03:05.5]} 5. Bd2 {[%clk 0:03:03.8]}
5... Bxf3 {[%clk 0:03:06.9]} 6. exf3 {[%clk 0:03:04.7]} 6... Bxd2+ {[%clk
0:03:07.7]} 7. Qxd2 {[%clk 0:03:05.4]} 7... c6 {[%clk 0:03:08.4]} 8. Bg2 {[%clk
0:03:04.7]} 8... d5 {[%clk 0:03:09.2]} 9. O-O {[%clk 0:02:53.6]} 9... Ne7 {[%clk
0:03:09.3]} 10. b3 {[%clk 0:02:51.8]} 10... O-O {[%clk 0:03:09.5]} 11. Nc3
{[%clk 0:02:53.4]} 11... Qd6 {[%clk 0:03:05.3]} 12. f4 {[%clk 0:02:53.6]} 12...
Nd7 {[%clk 0:03:00.9]} 13. Rac1 {[%clk 0:02:51.8]} 13... Rfd8 {[%clk 0:02:55.4]}
14. Rfd1 {[%clk 0:02:52.1]} 14... Nf6 {[%clk 0:02:53.4]} 15. h3 {[%clk
0:02:44.8]} 15... Rac8 {[%clk 0:02:53.1]} 16. Qe2 {[%clk 0:02:40.3]} 16... Nf5
{[%clk 0:02:40.5]} 17. c5 {[%clk 0:02:27.7]} 17... bxc5 {[%clk 0:02:26.8]} 18.
dxc5 {[%clk 0:02:27]} 18... Qb8 {[%clk 0:01:11.2]} 19. Nb1 {[%clk 0:02:02.8]}
19... Re8 {[%clk 0:01:07]} 20. Re1 {[%clk 0:01:54.7]} 20... Nd7 {[%clk
0:01:01.4]} 21. Qd3 {[%clk 0:01:45.1]} 21... g6 {[%clk 0:00:50.7]} 22. Nd2
{[%clk 0:01:33]} 22... Qb4 {[%clk 0:00:35.2]} 23. Qc2 {[%clk 0:01:21.8]} 23...
a5 {[%clk 0:00:30.6]} 24. Nf3 {[%clk 0:01:19.3]} 24... Nd4 {[%clk 0:00:23.8]}
25. Nxd4 {[%clk 0:01:18]} 25... Qxd4 {[%clk 0:00:24.9]} 26. a3 {[%clk 0:01:01]}
26... Rb8 {[%clk 0:00:25.6]} 27. Red1 {[%clk 0:01:02.1]} 27... Qf6 {[%clk
0:00:24.8]} 28. Rb1 {[%clk 0:00:55.1]} 28... Rb5 {[%clk 0:00:19.2]} 29. b4
{[%clk 0:00:53.3]} 29... axb4 {[%clk 0:00:20.5]} 30. axb4 {[%clk 0:00:55.2]}
30... Reb8 {[%clk 0:00:21.4]} 31. Qa4 {[%clk 0:00:56]} 31... Nxc5 {[%clk
0:00:19.1]} 32. Qc2 {[%clk 0:00:52.8]} 32... Qf5 {[%clk 0:00:09.9]} 33. Qc3
{[%clk 0:00:42.3]} 33... Ne4 {[%clk 0:00:04.7]} 34. Qxc6 {[%clk 0:00:40.2]}
34... Rxb4 {[%clk 0:00:05.1]} 35. Rxb4 {[%clk 0:00:39.2]} 35... Rxb4 {[%clk
0:00:07]} 36. Qc2 {[%clk 0:00:40.7]} 36... Rc4 {[%clk 0:00:07.3]} 37. Qd3 {[%clk
0:00:41.2]} 37... Qf6 {[%clk 0:00:05.1]} 38. Bxe4 {[%clk 0:00:40.2]} 38... Rxe4
{[%clk 0:00:06.1]} 39. Rc1 {[%clk 0:00:38.4]} 39... Kg7 {[%clk 0:00:06.8]} 40.
Kg2 {[%clk 0:00:38.8]} 40... h5 {[%clk 0:00:07.1]} 41. Qc3 {[%clk 0:00:38.1]}
41... Qxc3 {[%clk 0:00:04.2]} 42. Rxc3 {[%clk 0:00:40]} 42... Re2 {[%clk
0:00:05.7]} 43. Kf3 {[%clk 0:00:40.9]} 43... Ra2 {[%clk 0:00:05.5]} 44. Rc7
{[%clk 0:00:42.3]} 44... Kf6 {[%clk 0:00:06.3]} 45. Rb7 {[%clk 0:00:42.1]} 45...
Ra3+ {[%clk 0:00:04.8]} 46. Ke2 {[%clk 0:00:43.1]} 46... Ra2+ {[%clk 0:00:04]}
47. Ke3 {[%clk 0:00:44.1]} 47... Ra3+ {[%clk 0:00:05.6]} 48. Ke2 {[%clk
0:00:45.7]} 48... h4 {[%clk 0:00:07]} 49. Rb8 {[%clk 0:00:07.7]} 49... hxg3
{[%clk 0:00:06.6]} 50. fxg3 {[%clk 0:00:09.6]} 50... Rxg3 {[%clk 0:00:07.5]} 51.
Rh8 {[%clk 0:00:11.5]} 51... Kf5 {[%clk 0:00:06.5]} 52. Rh6 {[%clk 0:00:12.6]}
52... Kxf4 {[%clk 0:00:05.6]} 53. Rh7 {[%clk 0:00:14.5]} 53... f6 {[%clk
0:00:06.2]} 54. Rf7 {[%clk 0:00:15.7]} 54... Kf5 {[%clk 0:00:07.4]} 55. Rxf6+
{[%clk 0:00:17.4]} 55... Kxf6 {[%clk 0:00:08.5]} 0-1

[Event "*** Titled Tuesday 3|2 Blitz"]
[Site "Chess.com"]
[Date "2015.12.01"]
[Round "6"]
[White "gumersindo"]
[Black "Gabrielian_Artur"]
[Result "0-1"]
[WhiteElo "2199"]
[BlackElo "2445"]
[TimeControl "180+2"]
[EndTime "18:16:31 PST"]
[Termination "Gabrielian_Artur won by checkmate"]

1. d4 {[%clk 0:03:01.9]} 1... Nf6 {[%clk 0:03:00.6]} 2. c4 {[%clk 0:03:03]} 2...
c5 {[%clk 0:03:01.7]} 3. d5 {[%clk 0:03:04]} 3... e6 {[%clk 0:03:02.5]} 4. Nc3
{[%clk 0:03:04.5]} 4... exd5 {[%clk 0:03:03.9]} 5. cxd5 {[%clk 0:03:06.1]} 5...
d6 {[%clk 0:03:05.3]} 6. e4 {[%clk 0:03:07]} 6... g6 {[%clk 0:03:06.7]} 7. Bd3
{[%clk 0:03:04.5]} 7... Bg7 {[%clk 0:03:07.7]} 8. h3 {[%clk 0:03:04.3]} 8... O-O
{[%clk 0:03:08.1]} 9. Nf3 {[%clk 0:03:02.6]} 9... Nh5 {[%clk 0:03:09]} 10. O-O
{[%clk 0:03:01.8]} 10... a6 {[%clk 0:03:10.5]} 11. a4 {[%clk 0:03:02]} 11... Nd7
{[%clk 0:03:11.7]} 12. Bg5 {[%clk 0:02:59.2]} 12... Bf6 {[%clk 0:03:12.3]} 13.
Bxf6 {[%clk 0:02:54.4]} 13... Qxf6 {[%clk 0:03:12.5]} 14. Re1 {[%clk 0:02:54.4]}
14... Nf4 {[%clk 0:03:11.7]} 15. Bf1 {[%clk 0:02:53.5]} 15... Ne5 {[%clk
0:03:09.3]} 16. Nxe5 {[%clk 0:02:53.3]} 16... Qxe5 {[%clk 0:03:10.3]} 17. g3
{[%clk 0:02:51.8]} 17... Nxh3+ {[%clk 0:03:06.7]} 18. Bxh3 {[%clk 0:02:48.9]}
18... Bxh3 {[%clk 0:03:06.9]} 19. f4 {[%clk 0:02:45.2]} 19... Qd4+ {[%clk
0:02:56.6]} 20. Qxd4 {[%clk 0:02:45.1]} 20... cxd4 {[%clk 0:02:57.9]} 21. Ne2
{[%clk 0:02:46.3]} 21... d3 {[%clk 0:02:59.2]} 22. Nc3 {[%clk 0:02:46]} 22...
Bg4 {[%clk 0:02:57.8]} 23. Re3 {[%clk 0:02:44.2]} 23... d2 {[%clk 0:02:53.8]}
24. Rd3 {[%clk 0:02:44.8]} 24... b5 {[%clk 0:02:54.1]} 25. axb5 {[%clk
0:02:43.6]} 25... axb5 {[%clk 0:02:55.2]} 26. Rxa8 {[%clk 0:02:43.1]} 26... Rxa8
{[%clk 0:02:56.8]} 27. Rxd2 {[%clk 0:02:44.4]} 27... Bd7 {[%clk 0:02:24]} 28. e5
{[%clk 0:02:41.6]} 28... dxe5 {[%clk 0:02:21.6]} 29. fxe5 {[%clk 0:02:42.5]}
29... Kf8 {[%clk 0:02:11.6]} 30. Ne4 {[%clk 0:02:38.3]} 30... b4 {[%clk
0:02:08.2]} 31. Nc5 {[%clk 0:02:38]} 31... Bb5 {[%clk 0:02:05.6]} 32. Rd4 {[%clk
0:02:37.7]} 32... Rc8 {[%clk 0:02:04.2]} 33. Ne4 {[%clk 0:02:37.6]} 33... Rc1+
{[%clk 0:02:00.7]} 34. Kf2 {[%clk 0:02:38.7]} 34... Rc2+ {[%clk 0:02:02]} 35.
Rd2 {[%clk 0:02:39.5]} 35... b3 {[%clk 0:01:54.7]} 36. Ke3 {[%clk 0:02:38.2]}
36... Rc1 {[%clk 0:01:55.3]} 37. Nd6 {[%clk 0:02:37]} 37... Bd7 {[%clk
0:01:51.7]} 38. Rd3 {[%clk 0:02:33.3]} 38... Ke7 {[%clk 0:01:52.6]} 39. Rxb3
{[%clk 0:02:31.9]} 39... f6 {[%clk 0:01:54.1]} 40. Ne4 {[%clk 0:02:20.8]} 40...
fxe5 {[%clk 0:01:48.4]} 41. d6+ {[%clk 0:02:17.5]} 41... Ke6 {[%clk 0:01:48.6]}
42. Ng5+ {[%clk 0:02:10.8]} 42... Kxd6 {[%clk 0:01:47.4]} 43. Nxh7 {[%clk
0:02:11.7]} 43... Re1+ {[%clk 0:01:35.3]} 44. Kf2 {[%clk 0:02:11.5]} 44... Rh1
{[%clk 0:01:31]} 45. Ng5 {[%clk 0:02:11.8]} 45... Bc6 {[%clk 0:01:28]} 46. Rd3+
{[%clk 0:02:09.6]} 46... Ke7 {[%clk 0:01:26.6]} 47. b4 {[%clk 0:02:01.7]} 47...
Rb1 {[%clk 0:01:23.1]} 48. Rc3 {[%clk 0:02:01.1]} 48... Bd5 {[%clk 0:01:12.1]}
49. Rc5 {[%clk 0:01:53.6]} 49... Kd6 {[%clk 0:01:11.6]} 50. Nh7 {[%clk 0:01:46]}
50... Rb2+ {[%clk 0:01:11.6]} 51. Ke3 {[%clk 0:01:43.7]} 51... Rb3+ {[%clk
0:01:11.7]} 52. Kf2 {[%clk 0:01:44.5]} 52... Rxb4 {[%clk 0:01:12.7]} 53. Rc2
{[%clk 0:01:42.7]} 53... Rb7 {[%clk 0:01:07.1]} 54. Ng5 {[%clk 0:01:42.5]} 54...
e4 {[%clk 0:00:58.4]} 55. Rd2 {[%clk 0:01:42.1]} 55... Ke5 {[%clk 0:00:54.9]}
56. Nh3 {[%clk 0:01:38.6]} 56... Rb3 {[%clk 0:00:54.2]} 57. Re2 {[%clk
0:01:31.7]} 57... Rf3+ {[%clk 0:00:54.4]} 58. Kg2 {[%clk 0:01:32.2]} 58... e3
{[%clk 0:00:55.4]} 59. Kh2 {[%clk 0:01:32.6]} 59... Bc4 {[%clk 0:00:53]} 60. Re1
{[%clk 0:01:30.5]} 60... e2 {[%clk 0:00:40.2]} 61. Kg2 {[%clk 0:01:24.7]} 61...
Rf1 {[%clk 0:00:39.5]} 62. Ng1 {[%clk 0:00:58.9]} 62... Bd5+ {[%clk 0:00:39.9]}
63. Kh3 {[%clk 0:00:43.3]} 63... Rxe1 {[%clk 0:00:40.3]} 64. Nf3+ {[%clk
0:00:43.9]} 64... Bxf3 {[%clk 0:00:40.7]} 65. g4 {[%clk 0:00:45]} 65... Kf4
{[%clk 0:00:40.7]} 66. Kh4 {[%clk 0:00:44.8]} 66... Rh1# {[%clk 0:00:41.2]} 0-1

[Event "*** Titled Tuesday 3|2 Blitz"]
[Site "Chess.com"]
[Date "2015.12.01"]
[Round "6"]
[White "Viaje"]
[Black "Penguininja"]
[Result "1-0"]
[WhiteElo "2189"]
[BlackElo "2166"]
[TimeControl "180+2"]
[EndTime "18:16:46 PST"]
[Termination "Viaje won by resignation"]

1. d4 {[%clk 0:03:01.9]} 1... d5 {[%clk 0:03:00.6]} 2. c4 {[%clk 0:03:03.2]}
2... c6 {[%clk 0:03:00.2]} 3. Nf3 {[%clk 0:03:02]} 3... Nf6 {[%clk 0:03:01.3]}
4. Qc2 {[%clk 0:03:03.2]} 4... dxc4 {[%clk 0:03:01.8]} 5. e4 {[%clk 0:03:04.1]}
5... Bg4 {[%clk 0:02:58.7]} 6. Be3 {[%clk 0:03:04.1]} 6... Nbd7 {[%clk
0:02:55.6]} 7. Bxc4 {[%clk 0:02:59.6]} 7... Bxf3 {[%clk 0:02:52.9]} 8. gxf3
{[%clk 0:02:59.9]} 8... e5 {[%clk 0:02:53.5]} 9. Nc3 {[%clk 0:02:51]} 9... Bd6
{[%clk 0:02:29.7]} 10. O-O-O {[%clk 0:02:45.6]} 10... Qc7 {[%clk 0:02:27.7]} 11.
Ne2 {[%clk 0:02:44.3]} 11... O-O {[%clk 0:01:52.8]} 12. Kb1 {[%clk 0:02:41.3]}
12... a5 {[%clk 0:01:52.9]} 13. Rdg1 {[%clk 0:02:38.7]} 13... Kh8 {[%clk
0:01:51.6]} 14. h4 {[%clk 0:02:28.4]} 14... b5 {[%clk 0:01:48.8]} 15. Bd3 {[%clk
0:02:28]} 15... c5 {[%clk 0:01:42.7]} 16. dxc5 {[%clk 0:02:09.7]} 16... Nxc5
{[%clk 0:01:44.6]} 17. Bxb5 {[%clk 0:02:05.5]} 17... Rab8 {[%clk 0:01:40.2]} 18.
a4 {[%clk 0:02:05.1]} 18... Qe7 {[%clk 0:01:31.8]} 19. Ng3 {[%clk 0:01:58.3]}
19... Ne6 {[%clk 0:01:08.3]} 20. Nf5 {[%clk 0:01:57.8]} 20... Qd8 {[%clk
0:01:08.4]} 21. Rd1 {[%clk 0:01:48.3]} 21... Nd4 {[%clk 0:00:53.7]} 22. Bxd4
{[%clk 0:01:47.6]} 22... exd4 {[%clk 0:00:54.7]} 23. Rxd4 {[%clk 0:01:48.3]}
23... Qc7 {[%clk 0:00:52.1]} 24. Rxd6 {[%clk 0:01:47.8]} 24... Qb7 {[%clk
0:00:53.3]} 25. Rxf6 {[%clk 0:01:46.2]} 25... gxf6 {[%clk 0:00:53.7]} 26. Qc3
{[%clk 0:01:47.7]} 26... Qb6 {[%clk 0:00:54]} 27. Rc1 {[%clk 0:01:35.8]} 27...
Rbd8 {[%clk 0:00:44.3]} 28. e5 {[%clk 0:01:09.1]} 28... Qe6 {[%clk 0:00:23.8]}
29. Nd4 {[%clk 0:01:02.8]} 29... Qxe5 {[%clk 0:00:23.9]} 30. Nc6 {[%clk
0:01:01]} 30... Qf5+ {[%clk 0:00:23.9]} 31. Ka2 {[%clk 0:00:59.2]} 31... Rc8
{[%clk 0:00:11.4]} 32. Rd1 {[%clk 0:00:54.5]} 32... Qe6+ {[%clk 0:00:11.8]} 33.
Ka1 {[%clk 0:00:48.6]} 33... Rc7 {[%clk 0:00:11]} 34. Re1 {[%clk 0:00:48]} 34...
Qd6 {[%clk 0:00:09.8]} 35. Re4 {[%clk 0:00:39]} 35... Rfc8 {[%clk 0:00:09.4]}
36. Rc4 {[%clk 0:00:39.8]} 36... Qd1+ {[%clk 0:00:09.7]} 37. Ka2 {[%clk
0:00:40.2]} 37... Qd6 {[%clk 0:00:11.2]} 38. Qxa5 {[%clk 0:00:29.5]} 38... Qe6
{[%clk 0:00:10.7]} 39. Qc3 {[%clk 0:00:27]} 39... Rxc6 {[%clk 0:00:07.4]} 40.
Bxc6 {[%clk 0:00:28]} 40... Rxc6 {[%clk 0:00:09.3]} 41. b3 {[%clk 0:00:28.2]}
41... Qe2+ {[%clk 0:00:10.4]} 42. Ka3 {[%clk 0:00:28.7]} 42... Qe7+ {[%clk
0:00:09.6]} 43. Qb4 {[%clk 0:00:25.7]} 43... Rd6 {[%clk 0:00:08.5]} 44. Rc8+
{[%clk 0:00:24.5]} 44... Kg7 {[%clk 0:00:09.9]} 45. Qg4+ {[%clk 0:00:24.4]}
45... Kh6 {[%clk 0:00:11.5]} 46. Qf4+ {[%clk 0:00:25]} 46... Kh5 {[%clk
0:00:12]} 47. Qg4+ {[%clk 0:00:20.7]} 47... Kh6 {[%clk 0:00:13.3]} 48. Qf4+
{[%clk 0:00:18.7]} 48... Kh5 {[%clk 0:00:14.5]} 49. Qb4 {[%clk 0:00:20.1]} 49...
Qe5 {[%clk 0:00:14.3]} 50. Rc5 {[%clk 0:00:20.3]} 50... Rd5 {[%clk 0:00:14.5]}
51. Rxd5 {[%clk 0:00:20.8]} 51... Qxd5 {[%clk 0:00:16]} 52. Qg4+ {[%clk
0:00:22.2]} 52... Kh6 {[%clk 0:00:17.3]} 53. Qf4+ {[%clk 0:00:23.3]} 53... Kh5
{[%clk 0:00:18.7]} 54. Qxf6 {[%clk 0:00:24]} 54... Qd1 {[%clk 0:00:17.2]} 55.
Qxf7+ {[%clk 0:00:24.2]} 55... Kxh4 {[%clk 0:00:17.5]} 56. Qxh7+ {[%clk
0:00:25.6]} 56... Kg5 {[%clk 0:00:19.1]} 57. Qe4 {[%clk 0:00:25.5]} 57... Qa1+
{[%clk 0:00:19.1]} 58. Kb4 {[%clk 0:00:26.7]} 58... Qh8 {[%clk 0:00:18.8]} 59.
f4+ {[%clk 0:00:25.8]} 59... Kg4 {[%clk 0:00:19.7]} 60. a5 {[%clk 0:00:26.8]}
60... Qb8+ {[%clk 0:00:19.8]} 61. Ka4 {[%clk 0:00:27.8]} 61... Qc7 {[%clk
0:00:20.7]} 62. b4 {[%clk 0:00:28.6]} 62... Qc3 {[%clk 0:00:21.4]} 63. f5+
{[%clk 0:00:29.1]} 63... Kg5 {[%clk 0:00:22.2]} 64. a6 {[%clk 0:00:30.3]} 64...
Qa1+ {[%clk 0:00:22]} 65. Kb5 {[%clk 0:00:31.5]} 65... Kf6 {[%clk 0:00:22.7]}
66. Qe6+ {[%clk 0:00:31.4]} 66... Kg7 {[%clk 0:00:24.3]} 67. Qe7+ {[%clk
0:00:32.1]} 67... Kh6 {[%clk 0:00:25.5]} 68. a7 {[%clk 0:00:32.5]} 68... Qf1+
{[%clk 0:00:25.7]} 69. Kb6 {[%clk 0:00:33.3]} 69... Qxf2+ {[%clk 0:00:27.1]} 70.
Qc5 {[%clk 0:00:33.1]} 70... Qf3 {[%clk 0:00:27.3]} 71. Qc6+ {[%clk 0:00:34.2]}
1-0

[Event "*** Titled Tuesday 3|2 Blitz"]
[Site "Chess.com"]
[Date "2015.12.01"]
[Round "6"]
[White "BellJackson95"]
[Black "gauranga"]
[Result "1-0"]
[WhiteElo "2193"]
[BlackElo "2041"]
[TimeControl "180+2"]
[EndTime "18:17:02 PST"]
[Termination "BellJackson95 won by resignation"]

1. e4 {[%clk 0:03:01.9]} 1... b6 {[%clk 0:03:01.5]} 2. d4 {[%clk 0:03:02.4]}
2... Bb7 {[%clk 0:03:02.8]} 3. Nc3 {[%clk 0:03:03.5]} 3... e6 {[%clk 0:03:03.6]}
4. Bd3 {[%clk 0:03:04.4]} 4... c5 {[%clk 0:03:00.5]} 5. Nf3 {[%clk 0:02:52.5]}
5... cxd4 {[%clk 0:03:01.4]} 6. Nxd4 {[%clk 0:02:52.6]} 6... a6 {[%clk 0:03:03]}
7. O-O {[%clk 0:02:52.6]} 7... d6 {[%clk 0:03:04.3]} 8. Re1 {[%clk 0:02:40.2]}
8... Be7 {[%clk 0:02:56.8]} 9. Qg4 {[%clk 0:02:32.3]} 9... Bf6 {[%clk
0:02:37.1]} 10. Nb3 {[%clk 0:02:23.3]} 10... Nd7 {[%clk 0:02:30.1]} 11. Be3
{[%clk 0:02:21.9]} 11... Ne7 {[%clk 0:02:16.4]} 12. f4 {[%clk 0:02:17.2]} 12...
O-O {[%clk 0:02:12.4]} 13. Qh3 {[%clk 0:02:07.2]} 13... g6 {[%clk 0:02:09.8]}
14. Bd4 {[%clk 0:02:03]} 14... e5 {[%clk 0:02:03]} 15. Be3 {[%clk 0:01:59.8]}
15... exf4 {[%clk 0:02:00.1]} 16. Bxf4 {[%clk 0:02:01.7]} 16... Ne5 {[%clk
0:02:01.2]} 17. Bf1 {[%clk 0:01:50]} 17... Bg7 {[%clk 0:01:56.5]} 18. Rad1
{[%clk 0:01:49.2]} 18... Qc7 {[%clk 0:01:54.5]} 19. Bh6 {[%clk 0:01:40.7]} 19...
b5 {[%clk 0:01:39.5]} 20. Bxg7 {[%clk 0:01:35.8]} 20... Kxg7 {[%clk 0:01:40.7]}
21. a3 {[%clk 0:01:32.5]} 21... f5 {[%clk 0:01:35.6]} 22. Nd4 {[%clk 0:01:21.2]}
22... Bc8 {[%clk 0:01:28.1]} 23. Qh4 {[%clk 0:01:11.4]} 23... f4 {[%clk
0:01:19.8]} 24. Be2 {[%clk 0:00:55.1]} 24... h6 {[%clk 0:01:18.5]} 25. Nf3
{[%clk 0:00:52.6]} 25... g5 {[%clk 0:01:08.8]} 26. Qf2 {[%clk 0:00:50.5]} 26...
N7g6 {[%clk 0:00:49.5]} 27. Nd4 {[%clk 0:00:44.8]} 27... Bd7 {[%clk 0:00:31]}
28. Nd5 {[%clk 0:00:45.1]} 28... Qa7 {[%clk 0:00:19.3]} 29. Nb6 {[%clk 0:00:39]}
29... Rae8 {[%clk 0:00:13.9]} 30. a4 {[%clk 0:00:33.5]} 30... Kh7 {[%clk
0:00:13.5]} 31. a5 {[%clk 0:00:33.3]} 31... Rf6 {[%clk 0:00:09]} 32. Nf5 {[%clk
0:00:32.6]} 32... Bxf5 {[%clk 0:00:09.4]} 33. exf5 {[%clk 0:00:34.5]} 33... Rxf5
{[%clk 0:00:10.4]} 34. Rxd6 {[%clk 0:00:27.9]} 34... Ref8 {[%clk 0:00:11.6]} 35.
Qd4 {[%clk 0:00:23.7]} 35... Qg7 {[%clk 0:00:12.4]} 36. Nd7 {[%clk 0:00:21.2]}
36... g4 {[%clk 0:00:09]} 37. Nxf8+ {[%clk 0:00:17.6]} 37... Rxf8 {[%clk
0:00:08.2]} 38. Bd3 {[%clk 0:00:13.8]} 38... f3 {[%clk 0:00:08]} 39. Rf1 {[%clk
0:00:09.1]} 39... Nxd3 {[%clk 0:00:07.8]} 40. Qxg7+ {[%clk 0:00:08.5]} 40...
Kxg7 {[%clk 0:00:08.5]} 41. Rxd3 {[%clk 0:00:10.4]} 41... Ne5 {[%clk 0:00:07.9]}
42. Rd5 {[%clk 0:00:10.5]} 42... Rf5 {[%clk 0:00:09.2]} 43. Rxe5 {[%clk
0:00:09.9]} 43... Rxe5 {[%clk 0:00:10.2]} 44. gxf3 {[%clk 0:00:11.8]} 44... gxf3
{[%clk 0:00:11]} 45. Rxf3 {[%clk 0:00:13.7]} 45... Re2 {[%clk 0:00:12.2]} 46.
Rf2 {[%clk 0:00:14.6]} 46... Re1+ {[%clk 0:00:13.5]} 47. Kg2 {[%clk 0:00:15.3]}
47... Rb1 {[%clk 0:00:13.5]} 48. c3 {[%clk 0:00:16.1]} 48... Ra1 {[%clk
0:00:14.6]} 49. b4 {[%clk 0:00:16.2]} 49... Rc1 {[%clk 0:00:15.7]} 50. Rf3
{[%clk 0:00:17.2]} 50... Kg6 {[%clk 0:00:17]} 51. h4 {[%clk 0:00:17.7]} 51...
Rc2+ {[%clk 0:00:15.5]} 52. Kf1 {[%clk 0:00:15.6]} 52... Rc1+ {[%clk 0:00:16.4]}
53. Ke2 {[%clk 0:00:16.4]} 53... Rh1 {[%clk 0:00:17.4]} 54. Rd3 {[%clk
0:00:15.7]} 54... Rxh4 {[%clk 0:00:17.6]} 55. Rd6+ {[%clk 0:00:16.2]} 55... Kf5
{[%clk 0:00:18.9]} 56. Rxa6 {[%clk 0:00:18.1]} 56... h5 {[%clk 0:00:19.6]} 57.
Rb6 {[%clk 0:00:19]} 57... Rh2+ {[%clk 0:00:20.4]} 58. Kd3 {[%clk 0:00:19.2]}
58... Rh3+ {[%clk 0:00:21.7]} 59. Kc2 {[%clk 0:00:19.4]} 59... h4 {[%clk
0:00:22.8]} 60. Rxb5+ {[%clk 0:00:20.3]} 60... Ke4 {[%clk 0:00:24.7]} 61. a6
{[%clk 0:00:20.2]} 61... Rh2+ {[%clk 0:00:25.8]} 62. Kb3 {[%clk 0:00:18.6]}
62... h3 {[%clk 0:00:27.2]} 63. a7 {[%clk 0:00:19.1]} 63... Rg2 {[%clk
0:00:27.2]} 64. a8=Q+ {[%clk 0:00:19.7]} 1-0

[Event "*** Titled Tuesday 3|2 Blitz"]
[Site "Chess.com"]
[Date "2015.12.01"]
[Round "6"]
[White "MattyDPerrine"]
[Black "Fh2411"]
[Result "0-1"]
[WhiteElo "2247"]
[BlackElo "2303"]
[TimeControl "180+2"]
[EndTime "18:17:25 PST"]
[Termination "Fh2411 won on time"]

1. d4 {[%clk 0:02:56.2]} 1... Nf6 {[%clk 0:03:00.3]} 2. c4 {[%clk 0:02:56]} 2...
e6 {[%clk 0:03:00.8]} 3. Nc3 {[%clk 0:02:56.3]} 3... d5 {[%clk 0:03:01.7]} 4.
cxd5 {[%clk 0:02:53.3]} 4... exd5 {[%clk 0:03:02.2]} 5. Bg5 {[%clk 0:02:54.7]}
5... c6 {[%clk 0:03:03.2]} 6. e3 {[%clk 0:02:51.6]} 6... Bf5 {[%clk 0:03:03.7]}
7. Qf3 {[%clk 0:02:52.7]} 7... Bg6 {[%clk 0:03:04.1]} 8. Bxf6 {[%clk 0:02:53.9]}
8... Qxf6 {[%clk 0:03:05.9]} 9. Qxf6 {[%clk 0:02:55]} 9... gxf6 {[%clk
0:03:07.4]} 10. Nge2 {[%clk 0:02:56.7]} 10... Nd7 {[%clk 0:03:04.9]} 11. h4
{[%clk 0:02:52.9]} 11... h5 {[%clk 0:03:05.1]} 12. Kd2 {[%clk 0:02:53]} 12...
Nb6 {[%clk 0:03:05.9]} 13. Ng3 {[%clk 0:02:48.4]} 13... Nc8 {[%clk 0:02:49.4]}
14. Bd3 {[%clk 0:02:41.1]} 14... Nd6 {[%clk 0:02:46.3]} 15. Rac1 {[%clk
0:02:29.1]} 15... Bh6 {[%clk 0:02:21.7]} 16. b3 {[%clk 0:02:12.9]} 16... Kd7
{[%clk 0:02:17.4]} 17. Na4 {[%clk 0:02:05.6]} 17... Rae8 {[%clk 0:02:17.1]} 18.
Rc2 {[%clk 0:01:55.5]} 18... Rhg8 {[%clk 0:02:12.2]} 19. Nc5+ {[%clk 0:01:30.9]}
19... Kc7 {[%clk 0:02:11.6]} 20. Rh3 {[%clk 0:01:20.4]} 20... f5 {[%clk
0:01:38.3]} 21. f4 {[%clk 0:00:46.5]} 21... Bf8 {[%clk 0:01:14.4]} 22. Be2
{[%clk 0:00:44.5]} 22... Be7 {[%clk 0:01:06.4]} 23. Bf3 {[%clk 0:00:33.6]} 23...
Rh8 {[%clk 0:00:59.8]} 24. Nd3 {[%clk 0:00:24.2]} 24... Kd8 {[%clk 0:00:46.2]}
25. Ne5 {[%clk 0:00:21.2]} 25... Reg8 {[%clk 0:00:47.5]} 26. Rc1 {[%clk
0:00:16.4]} 26... Ne4+ {[%clk 0:00:29]} 27. Bxe4 {[%clk 0:00:11.7]} 27... dxe4
{[%clk 0:00:27]} 28. Ke2 {[%clk 0:00:09.1]} 28... Rh6 {[%clk 0:00:17.1]} 29. Kf2
{[%clk 0:00:09.8]} 29... Ke8 {[%clk 0:00:17.7]} 30. Ne2 {[%clk 0:00:07.8]} 30...
Bh7 {[%clk 0:00:14.6]} 31. Nc4 {[%clk 0:00:07.6]} 31... Rg4 {[%clk 0:00:10.9]}
32. g3 {[%clk 0:00:08.3]} 32... Rg8 {[%clk 0:00:10.2]} 33. Na5 {[%clk
0:00:07.4]} 33... b6 {[%clk 0:00:10.7]} 34. Rxc6 {[%clk 0:00:06.4]} 34... Rhg6
{[%clk 0:00:05.2]} 35. Rxg6 {[%clk 0:00:05.9]} 35... Bxg6 {[%clk 0:00:05.7]} 36.
Nc4 {[%clk 0:00:07.2]} 36... f6 {[%clk 0:00:05.7]} 37. Rh1 {[%clk 0:00:07.9]}
37... Bf7 {[%clk 0:00:06.9]} 38. Rc1 {[%clk 0:00:08.7]} 38... Kd7 {[%clk
0:00:08.5]} 39. Nd2 {[%clk 0:00:08.2]} 39... Ba3 {[%clk 0:00:09.9]} 40. Rc2
{[%clk 0:00:08.3]} 40... Be6 {[%clk 0:00:10.9]} 41. Nb1 {[%clk 0:00:09.2]} 41...
Be7 {[%clk 0:00:12.1]} 42. Ke1 {[%clk 0:00:08.2]} 42... Bf7 {[%clk 0:00:09.1]}
43. Kf2 {[%clk 0:00:09.2]} 43... Be6 {[%clk 0:00:10.3]} 44. Rc1 {[%clk
0:00:09.6]} 44... Bd5 {[%clk 0:00:11.5]} 45. Nbc3 {[%clk 0:00:10.6]} 45... Bb7
{[%clk 0:00:12.4]} 46. Nb5 {[%clk 0:00:11]} 46... Rc8 {[%clk 0:00:10.1]} 47.
Rxc8 {[%clk 0:00:08.8]} 47... Bxc8 {[%clk 0:00:12]} 48. Nbc3 {[%clk 0:00:07.6]}
48... Ba6 {[%clk 0:00:13.4]} 49. Nd1 {[%clk 0:00:06.1]} 49... Bd3 {[%clk
0:00:14.8]} 50. Nec3 {[%clk 0:00:06.8]} 50... a6 {[%clk 0:00:15.4]} 51. Na4
{[%clk 0:00:06.9]} 51... Kc6 {[%clk 0:00:15.9]} 52. Nac3 {[%clk 0:00:07.1]}
52... Bb4 {[%clk 0:00:15.7]} 53. Ke1 {[%clk 0:00:04.3]} 53... b5 {[%clk
0:00:14.6]} 54. Kd2 {[%clk 0:00:04.5]} 54... a5 {[%clk 0:00:16]} 55. Kc1 {[%clk
0:00:05.3]} 55... Ba3+ {[%clk 0:00:15.4]} 56. Kd2 {[%clk 0:00:06.4]} 56... Bb4
{[%clk 0:00:16.3]} 57. Kc1 {[%clk 0:00:07]} 57... Ba3+ {[%clk 0:00:14.8]} 58.
Nb2 {[%clk 0:00:07.7]} 58... Bb4 {[%clk 0:00:12.9]} 59. Kd2 {[%clk 0:00:06.4]}
59... Bf1 {[%clk 0:00:13.7]} 60. a4 {[%clk 0:00:05.7]} 60... bxa4 {[%clk
0:00:08.2]} 61. Nxa4 {[%clk 0:00:04.8]} 61... Bd3 {[%clk 0:00:08.5]} 62. Nb2
{[%clk 0:00:05.5]} 62... Ba6 {[%clk 0:00:09.1]} 63. Nc4 {[%clk 0:00:04.5]} 63...
a4 {[%clk 0:00:06.7]} 64. Kc2 {[%clk 0:00:05.9]} 64... a3 {[%clk 0:00:06.4]} 65.
Na2 {[%clk 0:00:06.1]} 65... Kb5 {[%clk 0:00:06.9]} 66. Nxb4 {[%clk 0:00:04.2]}
66... Kxb4 {[%clk 0:00:08.8]} 67. Nd6 {[%clk 0:00:05.8]} 67... Bd3+ {[%clk
0:00:10.1]} 0-1